bitfinex/quotes_BTCUSD_20250812
["timestamp","ask_amount","ask_price","bid_price","bid_amount"]
[1755018215554,0.01545259,119710.0,119700.0,0.74133762]
[1755018215761,0.01545259,119710.0,119700.0,1.30553131]
[1755018219164,0.01545259,119710.0,119700.0,0.60020762]
[1755018219362,0.02058259,119710.0,119700.0,0.73564762]
[1755018219987,0.02058259,119710.0,119700.0,0.73765762]
[1755018220263,0.02058259,119710.0,119700.0,0.73564762]
[1755018221321,0.02058259,119710.0,119700.0,0.73741762]
[1755018221914,0.01756259,119710.0,119700.0,0.73741762]
[1755018222489,0.01545259,119710.0,119700.0,0.73741762]
[1755018222687,0.01545259,119710.0,119700.0,1.30161131]
[1755018223060,0.01545259,119710.0,119700.0,0.74049762]
[1755018223291,0.01545259,119710.0,119700.0,1.30469131]
[1755018225268,2.038e-05,119720.0,119710.0,0.36707042]
[1755018225477,2.038e-05,119720.0,119710.0,2.76476336]
[1755018226257,2.038e-05,119720.0,119710.0,2.70707436]
[1755018226439,2.038e-05,119720.0,119710.0,2.69369836]
[1755018226641,2.038e-05,119720.0,119710.0,2.91114738]
[1755018229236,2.038e-05,119720.0,119710.0,2.77614738]
[1755018229437,2.038e-05,119720.0,119710.0,2.91090738]
[1755018230272,2.038e-05,119720.0,119710.0,2.78949138]
[1755018230474,2.038e-05,119720.0,119710.0,2.35020438]
[1755018230677,0.40027686,119730.0,119720.0,0.31705646]
[1755018230877,0.40027686,119730.0,119720.0,1.1007034]
[1755018231087,0.40027686,119730.0,119720.0,1.1037834]
[1755018231669,0.40027686,119730.0,119720.0,1.1036634]
[1755018231908,0.40127686,119730.0,119720.0,1.1036634]
[1755018234088,0.40127686,119730.0,119720.0,1.68530611]
[1755018234315,0.40127686,119730.0,119720.0,1.12111242]
[1755018234699,0.40027686,119730.0,119720.0,1.12111242]
[1755018236348,0.40027686,119730.0,119720.0,2.59999911]
[1755018236556,0.00027686,119730.0,119720.0,2.59999911]
[1755018236921,0.00027686,119730.0,119720.0,2.62505911]
[1755018237332,1e-08,119730.0,119720.0,2.92477654]
[1755018237543,1e-08,119730.0,119720.0,2.92977654]
[1755018238170,1e-08,119730.0,119720.0,2.93932395]
[1755018238821,5.469e-05,119740.0,119730.0,0.58449153]
[1755018238956,5.469e-05,119740.0,119730.0,4.52884627]
[1755018239157,5.469e-05,119740.0,119730.0,4.05141227]
[1755018239433,5.469e-05,119740.0,119730.0,3.74464227]
[1755018239945,5.469e-05,119740.0,119730.0,3.52137127]
[1755018240365,5.469e-05,119740.0,119730.0,3.52237127]
[1755018240572,5.469e-05,119740.0,119730.0,3.31956827]
[1755018240788,5.469e-05,119740.0,119730.0,3.32156827]
[1755018243504,5.469e-05,119740.0,119730.0,3.36156827]
[1755018245667,5.469e-05,119740.0,119730.0,2.25391227]
[1755018245851,5.469e-05,119740.0,119730.0,1.80922227]
[1755018246014,5.469e-05,119740.0,119730.0,1.98751327]
[1755018246212,5.469e-05,119740.0,119730.0,1.79076327]
[1755018246440,5.469e-05,119740.0,119730.0,1.99076327]
[1755018246864,5.469e-05,119740.0,119730.0,1.79076327]
[1755018247287,5.469e-05,119740.0,119730.0,1.99076327]
[1755018248812,5.469e-05,119740.0,119730.0,1.42656958]
[1755018249042,5.469e-05,119740.0,119730.0,1.99076327]
[1755018252214,5.469e-05,119740.0,119730.0,1.95076327]
[1755018252807,5.469e-05,119740.0,119730.0,1.38656958]
[1755018252977,5.469e-05,119740.0,119730.0,1.95076327]
[1755018255729,5.469e-05,119740.0,119730.0,1.95072327]
[1755018256575,5.469e-05,119740.0,119730.0,1.38652958]
[1755018256781,0.00221469,119740.0,119730.0,1.40286327]
[1755018256934,0.00543469,119740.0,119730.0,1.40533727]
[1755018257145,0.00543469,119740.0,119730.0,1.20533727]
[1755018257353,0.00543469,119740.0,119730.0,1.40533727]
[1755018257507,0.00543469,119740.0,119730.0,1.20533727]
[1755018257714,0.00543469,119740.0,119730.0,1.40533727]
[1755018257927,0.00543469,119740.0,119730.0,1.20533727]
[1755018258127,0.00543469,119740.0,119730.0,1.40533727]
[1755018258539,0.00543469,119740.0,119730.0,1.20533727]
[1755018258752,0.00543469,119740.0,119730.0,1.40533727]
[1755018259375,0.00221469,119740.0,119730.0,1.40730727]
[1755018259557,5.469e-05,119740.0,119730.0,1.40730727]
[1755018259959,5.469e-05,119740.0,119730.0,1.41055727]
[1755018261217,7.5e-06,119740.0,119730.0,1.41055727]
[1755018262251,7.5e-06,119740.0,119730.0,1.42727727]
[1755018262447,7.5e-06,119740.0,119730.0,1.77727727]
[1755018262884,7.5e-06,119740.0,119730.0,1.77627727]
[1755018263235,7.5e-06,119740.0,119730.0,1.77827727]
[1755018263659,7.5e-06,119740.0,119730.0,1.77627727]
[1755018263860,7.5e-06,119740.0,119730.0,1.77827727]
[1755018264128,7.5e-06,119740.0,119730.0,1.86928727]
[1755018264327,7.5e-06,119740.0,119730.0,1.78127727]
[1755018264734,1e-08,119750.0,119740.0,0.33447758]
[1755018265069,1e-08,119750.0,119740.0,6.88508821]
[1755018265248,1e-08,119750.0,119740.0,6.74854121]
[1755018265455,1e-08,119750.0,119740.0,6.69858821]
[1755018265651,1e-08,119750.0,119740.0,5.82392852]
[1755018266267,1e-08,119750.0,119740.0,5.82692852]
[1755018266466,1e-08,119750.0,119740.0,6.39112221]
[1755018266982,1e-08,119750.0,119740.0,5.82692852]
[1755018267410,0.00012254,119750.0,119740.0,5.82692852]
[1755018268057,0.00012254,119750.0,119740.0,5.10427352]
[1755018269343,0.00012254,119750.0,119740.0,4.65292252]
[1755018269548,0.00012254,119750.0,119740.0,3.11969352]
[1755018269954,0.00012254,119750.0,119740.0,2.84012322]
[1755018270149,0.00012254,119750.0,119740.0,2.88012322]
[1755018271352,0.0004,119770.0,119760.0,0.15]
[1755018271585,0.00287898,119770.0,119760.0,0.9639176]
[1755018271793,0.00287898,119770.0,119760.0,1.2214476]
[1755018272326,0.00287898,119770.0,119760.0,0.68195391]
[1755018272528,0.00287898,119770.0,119760.0,1.2712016]
[1755018273023,0.00287898,119770.0,119760.0,0.68239091]
[1755018273221,0.00287898,119770.0,119760.0,0.66214291]
[1755018273370,0.00580898,119770.0,119760.0,1.2263366]
[1755018273972,0.00287898,119770.0,119760.0,1.2263366]
[1755018274218,0.00287898,119770.0,119760.0,1.2283766]
[1755018274425,0.00287898,119770.0,119760.0,1.79564029]
[1755018275276,0.00287898,119770.0,119760.0,0.66418291]
[1755018275475,0.00287898,119770.0,119760.0,1.2273366]
[1755018275676,0.00580898,119770.0,119760.0,1.2273366]
[1755018275846,0.00580898,119770.0,119760.0,1.23565286]
[1755018276462,0.00580898,119770.0,119760.0,1.23765286]
[1755018276687,0.00580898,119770.0,119760.0,1.23665286]
[1755018277266,0.00580898,119770.0,119760.0,1.80084655]
[1755018277439,0.00580898,119770.0,119760.0,1.23665286]
[1755018277594,0.00580898,119770.0,119760.0,1.23865286]
[1755018278153,0.00580898,119770.0,119760.0,0.67445917]
[1755018278359,0.00580898,119770.0,119760.0,1.23865286]
[1755018278659,0.00580898,119770.0,119760.0,1.10473286]
[1755018278810,0.00580898,119770.0,119760.0,1.23865286]
[1755018279404,0.00287898,119770.0,119760.0,1.43897286]
[1755018280389,0.00287898,119770.0,119760.0,1.44101286]
[1755018283639,0.00088898,119770.0,119760.0,1.44408286]
[1755018283899,0.00088898,119770.0,119760.0,2.00827655]
[1755018284682,0.00088898,119770.0,119760.0,1.44408286]
[1755018284966,0.00088898,119770.0,119760.0,2.00827655]
[1755018285374,0.00088898,119770.0,119760.0,0.87988917]
[1755018285619,0.00088898,119770.0,119760.0,1.44408286]
[1755018288131,0.00088898,119770.0,119760.0,0.87988917]
[1755018288312,0.00287898,119770.0,119760.0,1.44408286]
[1755018288519,0.00596898,119770.0,119760.0,1.43897286]
[1755018288721,0.00287898,119770.0,119760.0,1.43897286]
[1755018288932,0.00287898,119770.0,119760.0,1.44101286]
[1755018289567,0.00287898,119770.0,119760.0,1.44408286]
[1755018291052,0.00088898,119770.0,119760.0,1.44408286]
[1755018292050,0.00287898,119770.0,119760.0,1.44408286]
[1755018294184,0.00287898,119770.0,119760.0,0.87988917]
[1755018294414,0.00287898,119770.0,119760.0,1.44408286]
[1755018296058,0.00088898,119770.0,119760.0,1.44408286]
[1755018296567,0.00088898,119770.0,119760.0,2.02572557]
[1755018296822,0.00088898,119770.0,119760.0,2.19990864]
[1755018297031,0.00088898,119770.0,119760.0,2.175443]
[1755018298905,0.4004,119780.0,119760.0,2.175443]
[1755018298906,0.0004,119790.0,119780.0,0.36744902]
[1755018299127,0.00054661,119790.0,119780.0,1.31729874]
[1755018299574,0.00054661,119790.0,119780.0,1.32024874]
[1755018300019,0.40249661,119790.0,119780.0,0.78110505]
[1755018300236,0.40249661,119790.0,119780.0,1.34529874]
[1755018300449,0.40571661,119790.0,119780.0,1.34030874]
[1755018300744,0.58812804,119790.0,119780.0,0.55862603]
[1755018300947,0.4211692,119790.0,119780.0,0.55862603]
[1755018302314,0.4211692,119790.0,119780.0,1.12281972]
[1755018303499,0.4211692,119790.0,119780.0,0.55862603]
[1755018303728,0.4211692,119790.0,119780.0,1.12281972]
[1755018303988,0.4211692,119790.0,119780.0,0.55862603]
[1755018304195,0.4211692,119790.0,119780.0,1.12281972]
[1755018304948,0.4211692,119790.0,119780.0,0.55862603]
[1755018305155,0.4211692,119790.0,119780.0,1.12281972]
[1755018312237,0.4211692,119790.0,119780.0,0.55862603]
[1755018312435,0.4211692,119790.0,119780.0,1.12281972]
[1755018315119,0.4211692,119790.0,119780.0,0.98893972]
[1755018315334,0.4211692,119790.0,119780.0,1.12281972]
[1755018315749,0.4211692,119790.0,119780.0,0.42474603]
[1755018315956,0.01545259,119770.0,119760.0,0.53398695]
[1755018316168,0.58481628,119770.0,119760.0,0.74220017]
[1755018316385,0.02062259,119770.0,119760.0,0.73388391]
[1755018316582,0.02323175,119770.0,119760.0,0.73388391]
[1755018317237,0.02323175,119770.0,119760.0,0.73488391]
[1755018317732,0.02323175,119770.0,119760.0,0.73388391]
[1755018318762,0.75441216,119770.0,119760.0,0.56688325]
[1755018319009,0.58481628,119770.0,119760.0,0.73388391]
[1755018319262,0.02062259,119770.0,119760.0,0.73388391]
[1755018319517,0.19021847,119770.0,119760.0,0.73388391]
[1755018319757,0.18760931,119770.0,119760.0,0.73388391]
[1755018319988,0.18860931,119770.0,119760.0,0.73388391]
[1755018320459,0.19060931,119770.0,119760.0,0.73388391]
[1755018321161,0.19060931,119770.0,119760.0,0.60004391]
[1755018321400,0.19060931,119770.0,119760.0,0.73388391]
[1755018324297,0.02040259,119770.0,119760.0,0.73388391]
[1755018324506,0.01845259,119770.0,119760.0,1.3030276]
[1755018325360,0.02106175,119770.0,119760.0,1.3030276]
[1755018325562,0.01845259,119770.0,119760.0,1.3030276]
[1755018327196,0.02106175,119770.0,119760.0,1.3030276]
[1755018327398,0.18804847,119770.0,119760.0,1.3030276]
[1755018327597,0.18738931,119770.0,119760.0,0.73883391]
[1755018327836,0.20487385,119770.0,119760.0,0.60004391]
[1755018327996,0.20809385,119770.0,119760.0,0.56688325]
[1755018328423,0.20809385,119770.0,119760.0,0.73388391]
[1755018328771,0.20809385,119770.0,119760.0,0.56688325]
[1755018329201,0.77228754,119770.0,119760.0,0.20032]
[1755018329387,0.1824672,119750.0,119740.0,0.45]
[1755018329687,0.1877172,119750.0,119740.0,0.66656325]
[1755018329909,0.27020163,119750.0,119740.0,0.85865581]
[1755018330118,0.1877172,119750.0,119740.0,0.85865581]
[1755018330856,0.1877172,119750.0,119740.0,0.85914479]
[1755018331429,0.1877172,119750.0,119740.0,0.72530479]
[1755018331571,0.1877172,119750.0,119740.0,0.69211623]
[1755018331786,0.27020163,119750.0,119740.0,0.69211623]
[1755018332162,0.1877172,119750.0,119740.0,0.69211623]
[1755018332649,0.1877172,119750.0,119740.0,0.69207623]
[1755018336472,0.1844772,119750.0,119740.0,0.72726479]
[1755018336697,0.1844772,119750.0,119740.0,0.86106479]
[1755018337136,0.1824672,119750.0,119740.0,1.42842848]
[1755018337350,0.01545259,119750.0,119740.0,1.42842848]
[1755018337552,0.1850768,119750.0,119740.0,1.42842848]
[1755018337752,0.1824672,119750.0,119740.0,0.86423479]
[1755018339471,0.1824672,119750.0,119740.0,0.73043479]
[1755018339667,0.1824672,119750.0,119740.0,0.86423479]
[1755018339872,0.01545259,119750.0,119740.0,0.86423479]
[1755018340111,0.01806219,119750.0,119740.0,0.86423479]
[1755018341163,0.18245482,119760.0,119750.0,0.16701461]
[1755018341380,0.01545259,119760.0,119750.0,0.95482757]
[1755018341580,0.01545259,119760.0,119750.0,0.95286155]
[1755018342004,0.01806197,119760.0,119750.0,0.95286155]
[1755018342351,0.01545259,119760.0,119750.0,0.95286155]
[1755018342568,0.01806197,119760.0,119750.0,0.95286155]
[1755018343143,0.01645259,119760.0,119750.0,0.95286155]
[1755018343572,0.001,119760.0,119750.0,0.95286155]
[1755018343745,0.01645259,119760.0,119750.0,1.15286155]
[1755018345804,0.01645259,119760.0,119750.0,0.58866786]
[1755018346047,0.01645259,119760.0,119750.0,1.15286155]
[1755018346995,0.18546325,119760.0,119750.0,0.41055686]
[1755018347199,0.18870325,119760.0,119750.0,0.40859686]
[1755018348421,0.02170259,119760.0,119750.0,0.40859686]
[1755018348645,0.22664363,119760.0,119750.0,0.40859686]
[1755018348853,0.22403425,119760.0,119750.0,0.40859686]
[1755018350265,0.18870325,119760.0,119750.0,0.40859686]
[1755018350466,0.75289694,119760.0,119750.0,0.10778225]
[1755018350678,0.75289694,119760.0,119750.0,0.21644325]
[1755018351052,0.18870325,119760.0,119750.0,0.21644325]
[1755018351445,0.75289694,119760.0,119750.0,0.21644325]
[1755018351592,0.25913387,119760.0,119750.0,0.21644325]
[1755018351818,0.82332756,119760.0,119750.0,0.08272325]
[1755018352004,0.1824672,119750.0,119740.0,0.47555098]
[1755018352360,0.1877172,119750.0,119740.0,0.69199423]
[1755018352880,0.1877172,119750.0,119740.0,0.85902279]
[1755018353213,0.20514794,119750.0,119740.0,0.85902279]
[1755018353612,0.1877172,119750.0,119740.0,0.85902279]
[1755018355711,0.1877172,119750.0,119740.0,0.69199423]
[1755018355829,0.1877172,119750.0,119740.0,0.85902279]
[1755018356257,0.1877172,119750.0,119740.0,0.55827423]
[1755018356491,0.1877172,119750.0,119740.0,0.66689223]
[1755018356707,0.27020163,119750.0,119740.0,0.83392079]
[1755018356935,0.27020163,119750.0,119740.0,0.66689223]
[1755018357148,0.27020163,119750.0,119740.0,0.83392079]
[1755018357819,0.26696163,119750.0,119740.0,0.66689223]
[1755018358018,0.26696163,119750.0,119740.0,0.83392079]
[1755018358903,0.26696163,119750.0,119740.0,0.83588079]
[1755018359738,0.26696163,119750.0,119740.0,0.66885223]
[1755018360263,0.26696163,119750.0,119740.0,0.83588079]
[1755018360680,0.1844772,119750.0,119740.0,0.83588079]
[1755018361545,0.1844772,119750.0,119740.0,0.70220079]
[1755018361750,0.1844772,119750.0,119740.0,0.83588079]
[1755018361962,0.01545259,119750.0,119740.0,1.40303448]
[1755018362170,0.01806219,119750.0,119740.0,1.40303448]
[1755018362361,0.01806219,119750.0,119740.0,1.26935448]
[1755018362583,0.16700104,119760.0,119740.0,1.40299448]
[1755018362808,0.00260938,119760.0,119750.0,0.95053155]
[1755018363026,0.17533832,119770.0,119760.0,0.16700066]
[1755018363248,0.22617417,119770.0,119760.0,0.1386]
[1755018363458,0.22812417,119770.0,119760.0,0.13564]
[1755018364656,0.19474091,119770.0,119760.0,0.13564]
[1755018364901,0.19474091,119770.0,119760.0,0.30560066]
[1755018365345,0.01745259,119770.0,119760.0,0.9525176]
[1755018365573,0.01845259,119770.0,119760.0,0.9525176]
[1755018365975,0.01845259,119770.0,119760.0,1.1025176]
[1755018366391,0.02106175,119770.0,119760.0,0.9688776]
[1755018366599,0.02106175,119770.0,119760.0,1.1025176]
[1755018367035,0.01906175,119770.0,119760.0,0.53832391]
[1755018367203,0.02006175,119770.0,119760.0,1.1025176]
[1755018367439,0.02006175,119770.0,119760.0,1.11996662]
[1755018367440,0.001,119770.0,119760.0,1.11996662]
[1755018367659,0.001,119770.0,119760.0,0.55577293]
[1755018367799,0.002,119770.0,119760.0,0.55577293]
[1755018368016,0.002,119770.0,119760.0,1.11996662]
[1755018369281,0.002,119770.0,119760.0,1.14502262]
[1755018370002,0.01545259,119780.0,119770.0,0.16698672]
[1755018370212,0.01545259,119780.0,119770.0,0.95442881]
[1755018370413,0.01545259,119780.0,119770.0,0.95246366]
[1755018370801,0.01545259,119780.0,119770.0,0.95208272]
[1755018371003,0.01585259,119790.0,119780.0,0.31697278]
[1755018371227,0.01585259,119790.0,119780.0,0.53525603]
[1755018371486,0.01585259,119790.0,119780.0,1.10240972]
[1755018372445,0.0159992,119790.0,119780.0,1.10240972]
[1755018373999,0.00054661,119790.0,119780.0,0.53821603]
[1755018374315,0.00054661,119790.0,119780.0,1.10240972]
[1755018374982,0.00054661,119790.0,119780.0,1.11985874]
[1755018375463,0.00054661,119790.0,119780.0,1.31985874]
[1755018376153,0.00054661,119790.0,119780.0,1.33571174]
[1755018377109,0.00054661,119790.0,119780.0,1.33147774]
[1755018377318,0.00054661,119790.0,119780.0,1.59160774]
[1755018377939,0.40054661,119790.0,119780.0,1.59160774]
[1755018381052,0.00054661,119790.0,119780.0,1.59160774]
[1755018381635,0.00054661,119790.0,119780.0,1.02741405]
[1755018381847,0.00054661,119790.0,119780.0,1.59160774]
[1755018384436,0.00054661,119790.0,119780.0,1.02741405]
[1755018384642,0.00054661,119790.0,119780.0,1.59160774]
[1755018385607,0.00054661,119790.0,119780.0,1.45804774]
[1755018385813,0.00054661,119790.0,119780.0,1.58131674]
[1755018386449,0.00054661,119790.0,119780.0,1.01712305]
[1755018386678,0.00054661,119790.0,119780.0,1.58131674]
[1755018386885,0.00054661,119790.0,119780.0,1.01712305]
[1755018387040,0.00054661,119790.0,119780.0,1.58131674]
[1755018387454,0.00054661,119790.0,119780.0,1.38131674]
[1755018387650,0.00054661,119790.0,119780.0,1.58131674]
[1755018388255,0.00054661,119790.0,119780.0,1.01712305]
[1755018388450,0.00054661,119790.0,119780.0,1.58131674]
[1755018389094,0.00054661,119790.0,119780.0,1.38131674]
[1755018389261,0.00054661,119790.0,119780.0,1.58131674]
[1755018390536,0.00021436,119790.0,119780.0,1.58131674]
[1755018391268,0.00021436,119790.0,119780.0,1.01712305]
[1755018391477,0.00021436,119790.0,119780.0,1.58131674]
[1755018392433,0.00231436,119790.0,119780.0,1.19791774]
[1755018392626,0.00536436,119790.0,119780.0,1.43221274]
[1755018393807,0.00536436,119790.0,119780.0,1.43421274]
[1755018393808,0.00231436,119790.0,119780.0,1.43421274]
[1755018393967,0.00021436,119790.0,119780.0,1.43742274]
[1755018399442,0.00231436,119790.0,119780.0,1.30406274]
[1755018399661,0.00536436,119790.0,119780.0,0.42876405]
[1755018399860,0.02081695,119790.0,119780.0,0.54459503]
[1755018400076,0.02081695,119790.0,119780.0,0.74487503]
[1755018400276,0.02081695,119790.0,119780.0,1.30906872]
[1755018401824,0.01776695,119790.0,119780.0,1.30906872]
[1755018402033,0.01566695,119790.0,119780.0,1.31427872]
[1755018404425,0.01566695,119790.0,119780.0,1.31727872]
[1755018404846,0.01566695,119790.0,119780.0,1.31427872]
[1755018405267,0.01566695,119790.0,119780.0,0.75308503]
[1755018405674,0.01566695,119790.0,119780.0,1.31727872]
[1755018408147,0.00021436,119790.0,119780.0,1.33472774]
[1755018408342,0.00021436,119790.0,119780.0,1.53472774]
[1755018408581,0.00021436,119790.0,119780.0,0.97053405]
[1755018408803,0.40021436,119790.0,119780.0,2.98345274]
[1755018411168,0.40021436,119790.0,119780.0,2.41925905]
[1755018411395,0.40021436,119790.0,119780.0,2.74866774]
[1755018413073,0.0004,119800.0,119790.0,0.16695884]
[1755018413291,0.0004,119800.0,119790.0,0.94907578]
[1755018413501,0.0004,119800.0,119790.0,0.95228578]
[1755018415490,0.0004,119800.0,119790.0,0.960546]
[1755018415844,0.0004,119800.0,119790.0,0.985593]
[1755018417996,0.0004,119800.0,119790.0,0.852393]
[1755018418208,0.0004,119800.0,119790.0,0.985553]
[1755018419465,0.0004,119800.0,119790.0,0.42135931]
[1755018419698,0.0004,119800.0,119790.0,0.985553]
[1755018421583,0.00245,119800.0,119790.0,0.28298931]
[1755018421798,0.00546,119800.0,119790.0,0.43359833]
[1755018422044,0.00546,119800.0,119790.0,0.99779202]
[1755018423800,0.02091259,119800.0,119790.0,0.41610931]
[1755018429345,0.01790259,119800.0,119790.0,0.41807931]
[1755018429548,0.01790259,119800.0,119790.0,0.982273]
[1755018429783,0.01790259,119800.0,119790.0,0.985203]
[1755018432013,0.01790259,119800.0,119790.0,0.42100931]
[1755018432452,0.01790259,119800.0,119790.0,0.985203]
[1755018433676,0.01790259,119800.0,119790.0,1.185483]
[1755018435844,0.01790259,119800.0,119790.0,0.62128931]
[1755018436102,0.01790259,119800.0,119790.0,1.185483]
[1755018436548,0.01790259,119800.0,119790.0,0.62128931]
[1755018436767,0.01790259,119800.0,119790.0,1.185483]
[1755018437213,0.01790259,119800.0,119790.0,0.62128931]
[1755018437430,0.01790259,119800.0,119790.0,1.185483]
[1755018437915,0.01585259,119800.0,119790.0,1.185483]
[1755018439281,0.01585259,119800.0,119790.0,0.62128931]
[1755018439506,0.01585259,119800.0,119790.0,1.185483]
[1755018440604,0.01790259,119800.0,119790.0,1.185483]
[1755018441299,0.01790259,119800.0,119790.0,0.48326931]
[1755018441521,0.01790259,119800.0,119790.0,0.61622931]
[1755018441522,0.75465969,119800.0,119790.0,0.61622931]
[1755018441747,0.77083548,119800.0,119790.0,0.61622931]
[1755018441974,0.20664179,119800.0,119790.0,0.61622931]
[1755018442662,0.20664179,119800.0,119790.0,0.60796909]
[1755018444643,0.20664179,119800.0,119790.0,0.30805025]
[1755018444894,0.20664179,119800.0,119790.0,0.44101025]
[1755018445104,0.77083548,119800.0,119790.0,0.41596325]
[1755018445555,0.20664179,119800.0,119790.0,0.41596325]
[1755018445780,0.77083548,119800.0,119790.0,0.41596325]
[1755018446655,0.77083548,119800.0,119790.0,0.3332]
[1755018447100,0.79527548,119800.0,119790.0,0.3332]
[1755018448168,0.79627548,119800.0,119790.0,0.3332]
[1755018449467,0.79627548,119800.0,119790.0,0.30161447]
[1755018450754,0.23208179,119800.0,119790.0,0.30161447]
[1755018450968,0.79627548,119800.0,119790.0,0.30161447]
[1755018451428,0.23208179,119800.0,119790.0,0.30161447]
[1755018451658,0.18242537,119780.0,119770.0,0.40851946]
[1755018451857,0.21940495,119780.0,119770.0,0.62430932]
[1755018452289,0.21940495,119780.0,119770.0,0.49138932]
[1755018452559,0.22233495,119780.0,119770.0,0.62430932]
[1755018452816,0.22233495,119780.0,119770.0,0.62530932]
[1755018453250,0.22233495,119780.0,119770.0,0.20142661]
[1755018453458,0.78652864,119780.0,119770.0,0.33430661]
[1755018453667,0.78652864,119780.0,119770.0,0.13402661]
[1755018454085,0.78652864,119780.0,119770.0,0.13302661]
[1755018454302,0.78652864,119780.0,119770.0,0.30835442]
[1755018454502,0.78652864,119780.0,119770.0,0.31035442]
[1755018454920,0.78652864,119780.0,119770.0,0.30001333]
[1755018455133,0.22233495,119780.0,119770.0,0.30001333]
[1755018455338,0.05243217,119780.0,119770.0,0.30001333]
[1755018455546,0.05504111,119780.0,119770.0,0.30541333]
[1755018455934,0.05604111,119780.0,119770.0,0.30541333]
[1755018456340,0.22301389,119780.0,119770.0,0.30541333]
[1755018456542,0.22040495,119780.0,119770.0,0.30541333]
[1755018456900,0.05139217,119780.0,119770.0,0.30541333]
[1755018457110,0.05400111,119780.0,119770.0,0.30541333]
[1755018457501,0.22097389,119780.0,119770.0,0.30541333]
[1755018457672,0.21836495,119780.0,119770.0,0.30541333]
[1755018458307,0.05039217,119780.0,119770.0,0.31359528]
[1755018458549,0.05300111,119780.0,119770.0,0.31459528]
[1755018459026,0.21997389,119780.0,119770.0,0.31459528]
[1755018459236,0.05039217,119780.0,119770.0,0.18171528]
[1755018459445,0.05300111,119780.0,119770.0,0.31459528]
[1755018460115,0.01806153,119780.0,119770.0,0.39731853]
[1755018462756,0.18503431,119780.0,119770.0,0.39731853]
[1755018462966,0.01545259,119780.0,119770.0,0.39731853]
[1755018463189,0.18503431,119780.0,119770.0,0.26443853]
[1755018463400,0.18446537,119780.0,119770.0,0.39727853]
[1755018463614,0.09793702,119780.0,119770.0,0.39727853]
[1755018463821,0.10054596,119780.0,119770.0,0.39727853]
[1755018466742,0.01806153,119780.0,119770.0,0.39727853]
[1755018471548,0.01806153,119780.0,119770.0,0.39700585]
[1755018472742,0.01545259,119790.0,119780.0,0.16696345]
[1755018472952,0.01806132,119790.0,119780.0,0.2550867]
[1755018477949,0.18502016,119790.0,119780.0,0.2550867]
[1755018478164,0.26693586,119790.0,119780.0,0.2496867]
[1755018478375,0.83405955,119790.0,119780.0,0.08272325]
[1755018478984,0.83405955,119790.0,119780.0,0.24969603]
[1755018480542,0.18242537,119780.0,119770.0,0.19204172]
[1755018480746,0.75166906,119780.0,119770.0,0.08272325]
[1755018480947,0.18243931,119770.0,119760.0,0.35028]
[1755018481174,0.748753,119770.0,119760.0,0.56572325]
[1755018481385,0.18748931,119770.0,119760.0,0.73272391]
[1755018481595,0.18748931,119770.0,119760.0,0.56572325]
[1755018481819,0.751683,119770.0,119760.0,0.56572325]
[1755018482028,0.83416743,119770.0,119760.0,0.56572325]
[1755018483054,0.83416743,119770.0,119760.0,0.33296]
[1755018483236,0.83416743,119770.0,119760.0,0.33396]
[1755018483436,0.26997374,119770.0,119760.0,0.33396]
[1755018483782,0.85923143,119770.0,119760.0,0.33396]
[1755018484006,0.85923143,119770.0,119760.0,0.33296]
[1755018485483,0.86123143,119770.0,119760.0,0.33296]
[1755018486139,0.29703774,119770.0,119760.0,0.33296]
[1755018486273,0.21755331,119770.0,119760.0,0.33296]
[1755018486732,0.781747,119770.0,119760.0,0.33296]
[1755018489324,0.21755331,119770.0,119760.0,0.33296]
[1755018489538,0.781747,119770.0,119760.0,0.33296]
[1755018490892,0.21755331,119770.0,119760.0,0.33296]
[1755018491118,0.82355468,119770.0,119760.0,0.33296]
[1755018498415,0.90627793,119770.0,119760.0,0.33296]
[1755018499191,0.34208424,119770.0,119760.0,0.33296]
[1755018499397,0.90627793,119770.0,119760.0,0.33296]
[1755018500233,0.90627793,119770.0,119760.0,0.13268]
[1755018501403,0.1824672,119750.0,119740.0,0.30316]
[1755018501606,0.78160893,119750.0,119740.0,0.43795]
[1755018502366,0.21741524,119750.0,119740.0,0.43795]
[1755018502572,0.78160893,119750.0,119740.0,0.43795]
[1755018504800,0.21741524,119750.0,119740.0,0.43795]
[1755018505017,0.78160893,119750.0,119740.0,0.43795]
[1755018505660,0.21741524,119750.0,119740.0,0.43795]
[1755018505880,0.78160893,119750.0,119740.0,0.43795]
[1755018506584,0.21741524,119750.0,119740.0,0.60497856]
[1755018506798,0.1824672,119750.0,119740.0,0.60497856]
[1755018507205,0.1824672,119750.0,119740.0,0.60493856]
[1755018508458,0.01545259,119750.0,119740.0,0.60493856]
[1755018508660,0.75627287,119760.0,119750.0,0.16701461]
[1755018508661,0.20753177,119760.0,119750.0,0.16701461]
[1755018508863,0.18246577,119760.0,119750.0,0.17228461]
[1755018509066,0.22242672,119760.0,119750.0,0.00527]
[1755018509409,0.78662041,119760.0,119750.0,0.00527]
[1755018510066,0.79058041,119760.0,119750.0,0.00527]
[1755018510910,0.79158041,119760.0,119750.0,0.13791]
[1755018511110,0.79158041,119760.0,119750.0,0.13475]
[1755018512284,0.22738672,119760.0,119750.0,0.13776]
[1755018512493,0.79158041,119760.0,119750.0,0.13776]
[1755018513150,0.79158041,119760.0,119750.0,0.13475]
[1755018518220,0.79481041,119760.0,119750.0,0.13475]
[1755018520223,0.79158041,119760.0,119750.0,0.13475]
[1755018520422,0.79158041,119760.0,119750.0,0.13776]
[1755018522026,0.79158041,119760.0,119750.0,0.13772]
[1755018522908,0.79158041,119760.0,119750.0,0.13471]
[1755018522909,0.79481041,119760.0,119750.0,0.13471]
[1755018523049,0.1824672,119750.0,119740.0,0.45]
[1755018523267,0.83110532,119750.0,119740.0,0.5826]
[1755018523488,0.83110532,119750.0,119740.0,0.4326]
[1755018523849,0.26691163,119750.0,119740.0,0.4326]
[1755018524049,0.26691163,119750.0,119740.0,0.43457]
[1755018524328,0.83110532,119750.0,119740.0,0.43457]
[1755018524534,0.83110532,119750.0,119740.0,0.3]
[1755018524535,0.83433532,119750.0,119740.0,0.3]
[1755018524832,0.83433532,119750.0,119740.0,0.4326]
[1755018525132,0.27014163,119750.0,119740.0,0.4326]
[1755018525344,0.83433532,119750.0,119740.0,0.4326]
[1755018526618,0.83433532,119750.0,119740.0,0.43256]
[1755018529536,0.83433532,119750.0,119740.0,0.3]
[1755018529711,0.83433532,119750.0,119740.0,0.43256]
[1755018530971,0.83433532,119750.0,119740.0,0.3]
[1755018531361,0.83433532,119750.0,119740.0,0.43256]
[1755018531793,0.27014163,119750.0,119740.0,0.43256]
[1755018532008,0.83433532,119750.0,119740.0,0.43256]
[1755018533983,0.83110532,119750.0,119740.0,0.3]
[1755018534139,0.83110532,119750.0,119740.0,0.43453]
[1755018535169,0.83433532,119750.0,119740.0,0.13256]
[1755018536938,0.83733532,119750.0,119740.0,0.13256]
[1755018540116,0.27314163,119750.0,119740.0,0.13256]
[1755018540318,0.75485089,119750.0,119740.0,0.13256]
[1755018541885,0.1854672,119750.0,119740.0,0.1329]